lending/lending_fUSD_20260209
["ID","MTS","AMOUNT","RATE_DAILY","PERIOD"]
[404877807,1770648044659,-50000.0,0.00044508,41]
[404877808,1770648044691,-50000.0,0.00044508,42]
[404877809,1770648044719,-144108.94453953,0.00044508,120]
[404877810,1770648044746,-20000.0,0.00044508,120]
[404877811,1770648044774,-700.0,0.00044508,120]
[404877812,1770648044804,-600.0,0.00044508,120]
[404877813,1770648044833,-2000.0,0.00044508,120]
[404877814,1770648044869,-326.0,0.00044508,30]
[404877815,1770648044898,-326.0,0.00044508,120]
[404877816,1770648044927,-370.20895615,0.00044508,30]
[404877817,1770648044957,-300.0,0.00044508,30]
[404877818,1770648044986,-300.0,0.00044508,30]
[404877819,1770648045015,-300.0,0.00044508,30]
[404877820,1770648045044,-300.0,0.00044508,30]
[404877821,1770648045072,-300.0,0.00044508,30]
[404877822,1770648045104,-300.0,0.00044508,30]
[404877823,1770648045137,-300.0,0.00044508,30]
[404877824,1770648045169,-300.0,0.00044508,30]
[404877825,1770648045199,-300.0,0.00044508,30]
[404877826,1770648045370,-300.0,0.00044508,30]
[404877827,1770648045400,-300.0,0.00044508,30]
[404877828,1770648045429,-300.0,0.00044508,30]
[404877829,1770648045458,-300.0,0.00044508,30]
[404877830,1770648045487,-300.0,0.00044508,30]
[404877831,1770648045516,-157.75060321,0.00044508,75]
[404877832,1770648045548,-242.0,0.00044508,30]
[404877833,1770648045579,-20711.0,0.00044508,120]
[404877834,1770648045612,-633.9061977,0.00044508,30]
[404877835,1770648045643,-263.55876282,0.00044508,60]
[404877836,1770648045673,-178.80587938,0.00044508,120]
[404877837,1770648045704,-475.06,0.00044508,120]
[404877838,1770648045735,-3500.0,0.00044508,120]
[404877839,1770648045766,-3500.0,0.00044508,120]
[404877840,1770648045797,-3649.8443176,0.00044508,120]
[404877841,1770648045828,-187.42497803,0.00044508,120]
[404877842,1770648045858,-167.30399918,0.00044508,120]
[404877843,1770648045894,-400.0,0.00044508,30]
[404877844,1770648045925,-400.0,0.00044508,30]
[404877845,1770648045957,-400.0,0.00044508,30]
[404877846,1770648045988,-400.0,0.00044508,30]
[404877847,1770648046019,-400.0,0.00044508,30]
[404877848,1770648046049,-400.0,0.00044508,30]
[404877849,1770648046079,-400.0,0.00044508,30]
[404877850,1770648046108,-400.0,0.00044508,30]
[404877851,1770648046142,-400.0,0.00044508,30]
[404877852,1770648046173,-400.0,0.00044508,30]
[404877853,1770648046204,-400.0,0.00044508,30]
[404877854,1770648046235,-400.0,0.00044508,30]
[404877855,1770648046267,-400.0,0.00044508,30]
[404877856,1770648046300,-400.0,0.00044508,30]
[404877857,1770648046333,-400.0,0.00044508,30]
[404877858,1770648046371,-400.0,0.00044508,30]
[404877859,1770648046403,-440.43188628,0.00044508,30]
[404877860,1770648046434,-5000.0,0.00044508,120]
[404877861,1770648046466,-4066.0,0.00044508,120]
[404877862,1770648046497,-233.0,0.00044508,120]
[404877863,1770648046528,-236.85863874,0.00044508,120]
[404877864,1770648046561,-1182.21664057,0.00044508,30]
[404877865,1770648046593,-2507.98883492,0.00044508,120]
[404877866,1770648046625,-189.73440249,0.00044508,120]
[404877867,1770648046656,-170.51153129,0.00044508,120]
[404877868,1770648046687,-314.08228978,0.00044508,120]
[404877869,1770648046718,-568.18985513,0.00044508,120]
[404877870,1770648046748,-300.39457321,0.00044508,30]
[404877871,1770648046780,-328.8271558,0.00044508,120]
[404877872,1770648046810,-384.31044395,0.00044508,120]
[404877873,1770648046840,-331.23662406,0.00044508,120]
[404877874,1770648046874,-200.53923618,0.00044508,120]
[404877875,1770648046904,-1484.8967848,0.00044508,120]
[404877876,1770648046933,-158.26512439,0.00044508,30]
[404877877,1770648046963,-2175.02413793,0.00044508,30]
[404877878,1770648046994,-1659.70895629,0.00044508,120]
[404877879,1770648047022,-4436.29074048,0.00044508,30]
[404877880,1770648047052,-778.24651231,0.00044508,120]
[404877881,1770648047083,-290.17362313,0.00044508,120]
[404877882,1770648047118,-1018.39400541,0.00044508,36]
[404877883,1770648047149,-7918.35539862,0.00044508,30]
[404877884,1770648047180,-235.82245408,0.00044508,120]
[404877885,1770648047213,-183.8573647,0.00044508,120]
[404877886,1770648047244,-210.0,0.00044508,120]
[404877887,1770648047275,-40000.0,0.00044508,30]
[404877888,1770648047304,-790.85090575,0.00044508,120]
[404877889,1770648047334,-411.75556209,0.00044508,120]
[404877890,1770648047367,-1167.17326962,0.00044508,120]
[404877891,1770648047395,-2650.7191971,0.00044508,120]
[404877892,1770648047423,-161647.34553182,0.00044508,120]
[404877893,1770648047450,-1144.06,0.00044508,120]
[404877894,1770648047477,-6580.76089657,0.00044508,30]
[404877895,1770648047504,-1057.63382329,0.00044508,120]
[404877896,1770648047532,-23932.1,0.00044508,30]
[404877897,1770648047560,-5000.0,0.00044508,120]
[404877898,1770648047587,-6010.52913543,0.00044508,60]
[404877899,1770648047618,-27791.14523873,0.00044508,60]
[404877900,1770648047646,-169.0,0.00044508,30]
[404877901,1770648047675,-3000.0,0.00044508,120]
[404877902,1770648047704,-3342.95,0.00044508,30]
[404877903,1770648047732,-396.71254407,0.00044508,120]
[404877904,1770648047762,-2531.49546848,0.00044508,120]
[404877905,1770648047790,-148518.60982852,0.00044508,30]
[404877906,1770648047818,-346.54448162,0.00044508,30]
[404877907,1770648047847,-837.0,0.00044508,30]
[404877908,1770648047875,-1601.0,0.00044508,120]
[404877909,1770648047904,-190039.0,0.00044508,60]
[404877910,1770648047936,-1094874.27302723,0.00044508,30]
[404877911,1770648047967,-12913.85343771,0.00044508,120]
[404877912,1770648047997,-125924.08755222,0.00044508,120]
[404877913,1770648048027,-100000.0,0.00044508,30]
[404877914,1770648048056,-6672.27136515,0.00044508,120]
[404877915,1770648048086,-228.0,0.00044508,120]
[404877916,1770648048121,-1104.0,0.00044508,30]
[404877917,1770648048151,-1104.0,0.00044508,30]
[404877918,1770648048180,-1127.58923285,0.00044508,30]
[404877919,1770648048210,-2811050.27310575,0.00044508,30]
[404877920,1770648057913,-758749.50897278,0.00044508,30]
[404877921,1770648057945,-20000.0,0.00044508,30]
[404877922,1770648057979,-96094.41,0.00044508,120]
[404877923,1770648058011,-171.97871509,0.00044508,120]
[404877924,1770648058044,-186.44114894,0.00044508,120]
[404877925,1770648058078,-157280.4675782,0.00044508,60]
[404877926,1770648058113,-67518.07725388,0.00044508,120]
[404877927,1770648058151,-2382.99794995,0.00044508,120]
[404877928,1770648058191,-1400.0,0.00044508,31]
[404877929,1770648058228,-500.0,0.00044508,120]
[404877930,1770648058266,-500.0,0.00044508,120]
[404877931,1770648058299,-500.0,0.00044508,120]
[404877932,1770648058332,-500.0,0.00044508,120]
[404877933,1770648058367,-500.0,0.00044508,120]
[404877934,1770648058404,-378435.59,0.00044508,30]
[404877935,1770648058437,-8861.51931368,0.00044508,120]
[404877936,1770648104892,-1056.096,0.00037557,120]
[404877937,1770648104923,-195.0,0.0003759,120]
[404877938,1770648104954,-190.27766529,0.00037623,120]
[404877939,1770648104986,-250.0,0.00037688,120]
[404877940,1770648105018,-195.0,0.00037716,120]
[404877941,1770648105048,-2417.517,0.00037719,30]
[404877942,1770648105080,-250.0,0.0003799,120]
[404877943,1770648105114,-5000.0,0.00039405,120]
[404877944,1770648105149,-166.66,0.00039992,30]
[404877945,1770648105182,-151.0,0.0004,120]
[404877946,1770648105212,-15888.99,0.0004,120]
[404877947,1770648105243,-156.0,0.0004,120]
[404877948,1770648105272,-24999.99,0.0004,120]
[404877949,1770648105301,-151.0,0.000412,120]
[404877950,1770648105332,-411.1834086,0.00041207,31]
[404877951,1770648105367,-500.0,0.00041207,31]
[404877952,1770648105411,-500.0,0.00041207,31]
[404877953,1770648105445,-500.0,0.00041207,31]
[404877954,1770648105478,-500.0,0.00041207,31]
[404877955,1770648105513,-500.0,0.00041207,31]
[404877956,1770648105549,-500.0,0.00041207,31]
[404877957,1770648105585,-182.16299977,0.00041207,31]
[404877958,1770648105620,-500.0,0.00041207,31]
[404877959,1770648105656,-500.0,0.00041207,31]
[404877960,1770648105691,-500.0,0.00041207,31]
[404877961,1770648105724,-500.0,0.00041207,31]
[404877962,1770648105758,-500.0,0.00041207,31]
[404877963,1770648105792,-500.0,0.00041207,31]
[404877964,1770648105827,-500.0,0.00041207,31]
[404877965,1770648105860,-500.0,0.00041207,31]
[404877966,1770648105894,-500.0,0.00041207,31]
[404877967,1770648105928,-500.0,0.00041207,31]
[404877968,1770648105962,-500.0,0.00041207,31]
[404877969,1770648105996,-500.0,0.00041207,31]
[404877970,1770648106032,-500.0,0.00041207,31]
[404877971,1770648106063,-167654.24774207,0.00041208,53]
[404877972,1770648106093,-250.0,0.00041313,120]
[404877973,1770648106124,-300.51454079,0.00041313,120]
[404877974,1770648106153,-300.0,0.00041313,120]
[404877975,1770648106185,-195.0,0.00041313,120]
[404877976,1770648106216,-166.66,0.00041395,30]
[404877977,1770648106247,-156.0,0.000414,120]
[404877978,1770648106276,-1000.0,0.00042116,120]
[404877979,1770648106306,-151.0,0.000424,120]
[404877980,1770648106337,-500.0,0.00042438,120]
[404877981,1770648106366,-500.0,0.00042575,120]
[404877982,1770648106396,-169.75030081,0.00042685,30]
[404877983,1770648106428,-156.0,0.000427,120]
[404877984,1770648106458,-500.0,0.00042712,120]
[404877985,1770648106486,-160.0,0.00042739,120]
[404877986,1770648106515,-500.0,0.00042797,60]
[404877987,1770648106544,-166.66,0.00042798,30]
[404877988,1770648106588,-500.0,0.00042849,120]
[404877989,1770648106620,-4381.50851904,0.000429,120]
[404877990,1770648106649,-151.0,0.00042968,120]
[404877991,1770648106681,-568.30301604,0.00042986,120]
[404877992,1770648106710,-150.0,0.00043,30]
[404877993,1770648106739,-4207.16,0.00043,82]
[404877994,1770648106769,-213.51485371,0.00043,120]
[404877995,1770648106799,-4938.0,0.00043,120]
[404877996,1770648106830,-2000.0,0.00043,120]
[404877997,1770648106860,-32962.0,0.00043071,30]
[404877998,1770648106890,-160.0,0.00043071,30]
[404877999,1770648106920,-678.74760529,0.00043123,120]
[404878000,1770648106950,-1000.0,0.00043148,31]
[404878001,1770648106982,-169.75030081,0.00043151,30]
[404878002,1770648107013,-1526.79,0.00043169,82]
[404878003,1770648107044,-10000.0,0.00043356,120]
[404878004,1770648107076,-171.65047554,0.000434,120]
[404878005,1770648107106,-500.0,0.0004344,30]
[404878006,1770648107320,-626.869,0.00043469,67]
[404878007,1770648107352,-1253.05,0.00043469,84]
[404878008,1770648107382,-1241.05,0.00043469,84]
[404878009,1770648107412,-172.32118972,0.00043497,120]
[404878010,1770648107442,-50000.0,0.000435,120]
[404878011,1770648107472,-151.0,0.000435,120]
[404878012,1770648107501,-151.0,0.000435,120]
[404878013,1770648107530,-151.0,0.000435,120]
[404878014,1770648107559,-170.428628,0.000435,120]
[404878015,1770648107587,-1229.34,0.000435,84]
[404878016,1770648107616,-150.0,0.000435,120]
[404878017,1770648107644,-32962.0,0.00043515,30]
[404878018,1770648107671,-10102.53361741,0.000436,30]
[404878019,1770648107699,-243.08396905,0.000436,120]
[404878020,1770648107727,-151.0,0.000436,120]
[404878021,1770648107755,-150.0,0.00043614,120]
[404878022,1770648107783,-169.75030081,0.00043616,30]
[404878023,1770648107812,-150.0,0.00043617,60]
[404878024,1770648107841,-150.0,0.00043672,60]
[404878025,1770648107871,-151.0,0.000437,120]
[404878026,1770648107900,-151.0,0.000437,120]
[404878027,1770648107931,-151.0,0.000437,120]
[404878028,1770648107960,-200.0,0.00043727,60]
[404878029,1770648107990,-151.0,0.0004375,120]
[404878030,1770648108020,-151.0,0.0004375,120]
[404878031,1770648108051,-151.0,0.0004375,120]
[404878032,1770648108082,-500.0,0.00043836,120]
[404878033,1770648108116,-200.0,0.00043869,120]
[404878034,1770648108149,-500.0,0.00043891,120]
[404878035,1770648108183,-151.0,0.000439,120]
[404878036,1770648108216,-151.0,0.000439,120]
[404878037,1770648108251,-151.0,0.000439,120]
[404878038,1770648108283,-253.0,0.000439,44]
[404878039,1770648108316,-500.0,0.00043946,120]
[404878040,1770648108349,-32962.0,0.00043959,30]
[404878041,1770648108383,-1999.0,0.00043964,30]
[404878042,1770648108420,-1178.6353464,0.00043986,60]
[404878043,1770648108455,-500.0,0.00043986,120]
[404878044,1770648108489,-500.0,0.00043986,120]
[404878045,1770648108521,-500.0,0.00043986,120]
[404878046,1770648108551,-500.0,0.00043986,120]
[404878047,1770648108582,-500.0,0.00043986,120]
[404878048,1770648108611,-217043.00078153,0.00043987,120]
[404878049,1770648108640,-151.0,0.00043987,120]
[404878050,1770648108671,-151.0,0.00043987,120]
[404878051,1770648108700,-151.0,0.00043987,120]
[404878052,1770648108730,-185.32176,0.00043987,120]
[404878053,1770648108764,-164.3759,0.00043987,120]
[404878054,1770648108795,-151.0,0.00043987,120]
[404878055,1770648108825,-165.368595,0.00043987,120]
[404878056,1770648108856,-151.000007,0.00043987,120]
[404878057,1770648108887,-216.1900309,0.00043987,120]
[404878058,1770648108919,-151.0,0.00043987,120]
[404878059,1770648108950,-151.0,0.00043987,120]
[404878060,1770648108983,-151.0,0.00043987,120]
[404878061,1770648109016,-151.0,0.00043987,120]
[404878062,1770648109049,-151.0,0.00043987,120]
[404878063,1770648109082,-151.0,0.00043987,120]
[404878064,1770648109115,-151.0,0.00043987,120]
[404878065,1770648109151,-151.0,0.00043987,120]
[404878066,1770648109193,-151.0,0.00043987,31]
[404878067,1770648109229,-151.0,0.00043987,120]
[404878068,1770648109261,-151.0,0.00043987,120]
[404878069,1770648109292,-151.000024,0.00043987,120]
[404878070,1770648109322,-151.0,0.00043987,120]
[404878071,1770648109352,-162.869037,0.00043987,120]
[404878072,1770648109381,-154.751976,0.00043987,120]
[404878073,1770648109416,-187.010118,0.00043987,120]
[404878074,1770648109448,-151.0,0.00043987,60]
[404878075,1770648109481,-161.009861,0.00043987,120]
[404878076,1770648109512,-161.009861,0.00043987,120]
[404878077,1770648109543,-161.009861,0.00043987,120]
[404878078,1770648109576,-161.009861,0.00043987,120]
[404878079,1770648109606,-732.03,0.00043987,30]
[404878080,1770648109634,-733.6,0.00044,120]
[404878081,1770648109667,-20000.0,0.00044,120]
[404878082,1770648109695,-21693.37209563,0.00044,120]
[404878083,1770648109725,-97520.9972605,0.00044,120]
[404878084,1770648109755,-22035.20441629,0.00044,50]
[404878085,1770648109785,-5000.0,0.00044,120]
[404878086,1770648109813,-6506.73411838,0.00044,120]
[404878087,1770648109841,-225981.52260578,0.00044,120]
[404878088,1770648109870,-21698.87098541,0.00044,120]
[404878089,1770648109899,-150.0,0.00044,30]
[404878090,1770648109932,-150.0,0.00044,30]
[404878091,1770648109963,-300.0,0.00044,120]
[404878092,1770648109993,-1000.0,0.00044,120]
[404878093,1770648110023,-19982.64105581,0.00044,120]
[404878094,1770648110054,-151.000007,0.00044,120]
[404878095,1770648110084,-200.103488,0.00044,120]
[404878096,1770648110114,-151.0,0.00044,120]
[404878097,1770648110148,-161.009861,0.00044,120]
[404878098,1770648110183,-161.009861,0.00044,120]
[404878099,1770648110216,-161.009861,0.00044,120]
[404878100,1770648110248,-161.009861,0.00044,120]
[404878101,1770648110279,-215.0,0.00044,30]
[404878102,1770648110309,-167.74164,0.00044,120]
[404878103,1770648110339,-151.0,0.00044,120]
[404878104,1770648110368,-183.439062,0.00044,120]
[404878105,1770648110399,-151.0,0.00044,120]
[404878106,1770648110429,-151.0,0.00044,120]
[404878107,1770648110458,-254.702966,0.00044,120]
[404878108,1770648110487,-155.611694,0.00044,120]
[404878109,1770648110515,-500.0,0.00044,120]
[404878110,1770648110696,-5000.0,0.00044009,120]
[404878111,1770648110729,-300.60000002,0.00044055,120]
[404878112,1770648110762,-156.0,0.000441,120]
[404878113,1770648110792,-500.0,0.00044109,120]
[404878114,1770648110822,-500.0,0.00044109,120]
[404878115,1770648110852,-500.0,0.00044109,120]
[404878116,1770648110881,-500.0,0.00044109,120]
[404878117,1770648110913,-500.0,0.00044109,120]
[404878118,1770648110946,-500.0,0.00044109,120]
[404878119,1770648110976,-500.0,0.00044109,120]
[404878120,1770648111007,-500.0,0.00044109,120]
[404878121,1770648111036,-500.0,0.00044109,120]
[404878122,1770648111065,-500.0,0.00044109,120]
[404878123,1770648111092,-500.0,0.00044109,120]
[404878124,1770648111122,-500.0,0.00044109,120]
[404878125,1770648111150,-500.0,0.00044109,120]
[404878126,1770648111183,-500.0,0.00044109,120]
[404878127,1770648111212,-500.0,0.00044109,120]
[404878128,1770648111242,-500.0,0.00044109,120]
[404878129,1770648111271,-500.0,0.00044109,120]
[404878130,1770648111299,-500.0,0.00044109,120]
[404878131,1770648111328,-500.0,0.00044109,120]
[404878132,1770648111358,-500.0,0.00044109,120]
[404878133,1770648111386,-194.39658786,0.00044109,120]
[404878134,1770648111418,-1534.0,0.0004411,30]
[404878135,1770648111446,-1966.73087757,0.0004417,120]
[404878136,1770648111475,-166.66,0.00044201,30]
[404878137,1770648111504,-150.0,0.000443,74]
[404878138,1770648111534,-151.0,0.0004433,120]
[404878139,1770648111563,-161.009861,0.0004433,120]
[404878140,1770648111591,-161.009861,0.0004433,120]
[404878141,1770648111619,-161.009861,0.0004433,120]
[404878142,1770648111647,-161.009861,0.0004433,120]
[404878143,1770648111674,-151.0,0.00044338,120]
[404878144,1770648111703,-1999.0,0.00044355,120]
[404878145,1770648111730,-151.0,0.00044356,60]
[404878146,1770648111758,-500.0,0.00044356,120]
[404878147,1770648111785,-500.0,0.00044356,120]
[404878148,1770648111813,-528.03335024,0.00044356,120]
[404878149,1770648111841,-500.0,0.00044356,120]
[404878150,1770648111871,-500.0,0.00044356,120]
[404878151,1770648111899,-500.0,0.00044356,120]
[404878152,1770648111930,-510.5772265,0.00044356,120]
[404878153,1770648111960,-289.74006499,0.00044356,120]
[404878154,1770648111990,-500.0,0.00044356,120]
[404878155,1770648112020,-500.0,0.00044356,120]
[404878156,1770648112056,-500.0,0.00044356,120]
[404878157,1770648112086,-514.80790671,0.00044356,120]
[404878158,1770648112115,-500.0,0.00044356,120]
[404878159,1770648112147,-500.0,0.00044356,120]
[404878160,1770648112181,-500.0,0.00044356,120]
[404878161,1770648112211,-512.59,0.00044356,120]
[404878162,1770648112240,-500.0,0.00044356,120]
[404878163,1770648112270,-500.0,0.00044356,120]
[404878164,1770648112300,-500.0,0.00044356,120]
[404878165,1770648112332,-500.0,0.00044356,120]
[404878166,1770648112362,-500.0,0.00044356,120]
[404878167,1770648112392,-500.0,0.00044356,120]
[404878168,1770648112422,-528.58432423,0.00044356,120]
[404878169,1770648112452,-500.0,0.00044356,120]
[404878170,1770648112482,-500.0,0.00044356,120]
[404878171,1770648112511,-500.0,0.00044356,120]
[404878172,1770648112545,-500.0,0.00044356,120]
[404878173,1770648112575,-273.42648957,0.00044356,120]
[404878174,1770648112604,-500.0,0.00044356,120]
[404878175,1770648112634,-509.17414501,0.00044356,120]
[404878176,1770648112671,-500.0,0.00044356,120]
[404878177,1770648112700,-507.58573156,0.00044356,120]
[404878178,1770648112731,-532.31768282,0.00044356,120]
[404878179,1770648112760,-500.0,0.00044356,120]
[404878180,1770648112789,-516.59304453,0.00044356,120]
[404878181,1770648112824,-500.0,0.00044356,120]
[404878182,1770648112854,-518.25400553,0.00044356,120]
[404878183,1770648112888,-500.0,0.00044356,120]
[404878184,1770648112923,-500.0,0.00044356,120]
[404878185,1770648112953,-500.0,0.00044356,120]
[404878186,1770648112985,-500.0,0.00044356,120]
[404878187,1770648113017,-500.0,0.00044356,120]
[404878188,1770648113051,-500.0,0.00044356,120]
[404878189,1770648113085,-500.0,0.00044356,120]
[404878190,1770648113123,-500.0,0.00044356,120]
[404878191,1770648113158,-500.0,0.00044356,120]
[404878192,1770648113198,-500.0,0.00044356,120]
[404878193,1770648113232,-500.0,0.00044356,120]
[404878194,1770648113269,-500.0,0.00044356,120]
[404878195,1770648113305,-500.0,0.00044356,120]
[404878196,1770648113340,-500.0,0.00044356,120]
[404878197,1770648113374,-500.0,0.00044356,120]
[404878198,1770648113411,-519.41264155,0.00044356,120]
[404878199,1770648113448,-500.0,0.00044356,120]
[404878200,1770648113481,-500.0,0.00044356,120]
[404878201,1770648113515,-500.0,0.00044356,120]
[404878202,1770648113547,-335.24220282,0.00044356,120]
[404878203,1770648113580,-500.0,0.00044356,120]
[404878204,1770648113613,-500.0,0.00044356,120]
[404878205,1770648113646,-500.0,0.00044356,120]
[404878206,1770648113680,-500.0,0.00044356,120]
[404878207,1770648113718,-500.0,0.00044356,120]
[404878208,1770648113753,-500.0,0.00044356,120]
[404878209,1770648113786,-500.0,0.00044356,120]
[404878210,1770648113818,-525.53347867,0.00044356,120]
[404878211,1770648113851,-500.0,0.00044356,120]
[404878212,1770648113884,-500.0,0.00044356,120]
[404878213,1770648113919,-508.99473428,0.00044356,120]
[404878214,1770648114168,-500.0,0.00044356,120]
[404878215,1770648114203,-508.31247488,0.00044356,120]
[404878216,1770648114234,-500.0,0.00044356,120]
[404878217,1770648114265,-500.0,0.00044356,120]
[404878218,1770648114296,-500.0,0.00044356,120]
[404878219,1770648114328,-500.0,0.00044356,120]
[404878220,1770648114360,-522.60765471,0.00044356,120]
[404878221,1770648114391,-500.0,0.00044356,120]
[404878222,1770648114421,-500.0,0.00044356,120]
[404878223,1770648114451,-500.0,0.00044356,120]
[404878224,1770648114480,-500.0,0.00044356,120]
[404878225,1770648114511,-501.90718254,0.00044356,120]
[404878226,1770648114540,-500.0,0.00044356,120]
[404878227,1770648114570,-500.0,0.00044356,120]
[404878228,1770648114603,-500.0,0.00044356,120]
[404878229,1770648114633,-500.0,0.00044356,120]
[404878230,1770648114664,-500.0,0.00044356,120]
[404878231,1770648114696,-500.0,0.00044356,120]
[404878232,1770648114726,-358.06992125,0.00044356,120]
[404878233,1770648114757,-500.0,0.00044356,120]
[404878234,1770648114787,-500.0,0.00044356,120]
[404878235,1770648114818,-500.0,0.00044356,120]
[404878236,1770648114852,-500.0,0.00044356,120]
[404878237,1770648114884,-500.0,0.00044356,120]
[404878238,1770648114916,-500.0,0.00044356,120]
[404878239,1770648114951,-500.0,0.00044356,120]
[404878240,1770648114984,-500.0,0.00044356,120]
[404878241,1770648115019,-516.10070963,0.00044356,120]
[404878242,1770648115052,-500.0,0.00044356,120]
[404878243,1770648115084,-500.0,0.00044356,120]
[404878244,1770648115120,-500.0,0.00044356,120]
[404878245,1770648115156,-500.0,0.00044356,120]
[404878246,1770648115190,-500.0,0.00044356,120]
[404878247,1770648115221,-500.0,0.00044356,120]
[404878248,1770648115255,-500.0,0.00044356,120]
[404878249,1770648115287,-500.0,0.00044356,120]
[404878250,1770648115319,-500.0,0.00044356,120]
[404878251,1770648115351,-500.0,0.00044356,120]
[404878252,1770648115382,-500.0,0.00044356,120]
[404878253,1770648115412,-527.91377052,0.00044356,120]
[404878254,1770648115443,-500.0,0.00044356,120]
[404878255,1770648115474,-500.0,0.00044356,120]
[404878256,1770648115505,-500.0,0.00044356,120]
[404878257,1770648115536,-500.0,0.00044356,120]
[404878258,1770648115567,-589.05249519,0.00044356,120]
[404878259,1770648115599,-500.0,0.00044356,120]
[404878260,1770648115631,-508.21751822,0.00044356,120]
[404878261,1770648115665,-500.0,0.00044356,120]
[404878262,1770648115698,-284.3776447,0.00044356,120]
[404878263,1770648115729,-504.29258364,0.00044356,120]
[404878264,1770648115761,-500.0,0.00044356,120]
[404878265,1770648115793,-500.0,0.00044356,120]
[404878266,1770648115825,-500.0,0.00044356,120]
[404878267,1770648115856,-500.0,0.00044356,120]
[404878268,1770648115889,-500.0,0.00044356,120]
[404878269,1770648115923,-500.0,0.00044356,120]
[404878270,1770648115958,-500.0,0.00044356,120]
[404878271,1770648115990,-500.0,0.00044356,120]
[404878272,1770648116023,-500.0,0.00044356,120]
[404878273,1770648116057,-500.0,0.00044356,120]
[404878274,1770648116089,-533.5367898,0.00044356,120]
[404878275,1770648116120,-500.0,0.00044356,120]
[404878276,1770648116152,-500.0,0.00044356,120]
[404878277,1770648116183,-500.0,0.00044356,120]
[404878278,1770648116213,-637.06210615,0.00044356,120]
[404878279,1770648116246,-500.0,0.00044356,120]
[404878280,1770648116275,-500.0,0.00044356,120]
[404878281,1770648116304,-500.0,0.00044356,120]
[404878282,1770648116335,-500.0,0.00044356,120]
[404878283,1770648116365,-500.0,0.00044356,120]
[404878284,1770648116396,-523.06270971,0.00044356,120]
[404878285,1770648116428,-500.0,0.00044356,120]
[404878286,1770648116458,-500.0,0.00044356,120]
[404878287,1770648116489,-500.0,0.00044356,120]
[404878288,1770648116523,-623.81097958,0.00044356,120]
[404878289,1770648116554,-500.0,0.00044356,120]
[404878290,1770648116585,-500.0,0.00044356,120]
[404878291,1770648116616,-500.0,0.00044356,120]
[404878292,1770648116647,-500.0,0.00044356,120]
[404878293,1770648116678,-500.0,0.00044356,120]
[404878294,1770648116709,-500.0,0.00044356,120]
[404878295,1770648116740,-498.18972795,0.00044356,120]
[404878296,1770648116772,-500.0,0.00044356,120]
[404878297,1770648116803,-526.17574676,0.00044356,120]
[404878298,1770648116833,-500.0,0.00044356,120]
[404878299,1770648116863,-500.0,0.00044356,120]
[404878300,1770648116895,-500.0,0.00044356,120]
[404878301,1770648116927,-500.0,0.00044356,120]
[404878302,1770648116959,-500.0,0.00044356,120]
[404878303,1770648116992,-500.0,0.00044356,120]
[404878304,1770648117024,-500.0,0.00044356,120]
[404878305,1770648117056,-500.0,0.00044356,120]
[404878306,1770648117088,-500.0,0.00044356,120]